fUST/lending_fUST_20251006
["ID","MTS","AMOUNT","RATE_DAILY","PERIOD"]
[389510647,1759689052188,-568.39,0.0001726,2]
[389510648,1759689052197,-500.0,0.0001726,2]
[389510649,1759689052207,-500.0,0.0001726,2]
[389510650,1759689052216,-698.89,0.0001726,2]
[389510651,1759689052225,-500.0,0.0001726,2]
[389510652,1759689052234,-151.0,0.0001726,2]
[389510653,1759689052243,-500.0,0.0001726,2]
[389510654,1759689052252,-500.0,0.0001726,2]
[389510655,1759689052262,-2265.52,0.0001726,2]
[389510656,1759689052271,-643.01,0.0001726,2]
[389510657,1759689052280,-500.0,0.0001726,2]
[389510658,1759689052290,-500.0,0.0001726,2]
[389510659,1759689052299,-500.0,0.0001726,2]
[389510660,1759689052308,-500.0,0.0001726,2]
[389510661,1759689052317,-151.0,0.0001726,2]
[389510662,1759689052326,-500.0,0.0001726,2]
[389510663,1759689052335,-151.0,0.0001726,2]
[389510664,1759689052344,-500.0,0.0001726,2]
[389510665,1759689052358,-1393.99,0.0001726,2]
[389510666,1759689052367,-500.05,0.0001726,2]
[389510667,1759689052376,-1317.15,0.0001726,2]
[389510668,1759689052386,-500.0,0.0001726,2]
[389510669,1759689052398,-763.35,0.0001726,2]
[389510670,1759689052408,-500.0,0.0001726,2]
[389510671,1759689052417,-500.0,0.0001726,2]
[389510672,1759689052426,-151.0,0.0001726,2]
[389510673,1759689052435,-151.0,0.0001726,2]
[389510674,1759689052444,-151.0,0.0001726,2]
[389510675,1759689052452,-198.347958,0.0001726,2]
[389510676,1759689052461,-546.92,0.0001726,2]
[389510677,1759689052471,-500.0,0.0001726,2]
[389510678,1759689052479,-675.29,0.0001726,2]
[389510679,1759689052488,-500.0,0.0001726,2]
[389510680,1759689052498,-151.0,0.0001726,2]
[389510681,1759689052507,-153.850378,0.0001726,2]
[389510682,1759689052519,-500.0,0.0001726,2]
[389510683,1759689052528,-852.17,0.0001726,2]
[389510684,1759689052539,-151.0,0.0001726,2]
[389510685,1759689052548,-199.375854,0.0001726,2]
[389510686,1759689052558,-500.0,0.0001726,2]
[389510687,1759689052567,-2432.63,0.0001726,2]
[389510688,1759689052577,-500.0,0.0001726,2]
[389510689,1759689052588,-809.72,0.0001726,2]
[389510690,1759689052598,-1268.73,0.0001726,2]
[389510691,1759689052608,-826.51,0.0001726,2]
[389510692,1759689052617,-151.0,0.0001726,2]
[389510693,1759689052627,-824.29,0.0001726,2]
[389510694,1759689052636,-974.64,0.0001726,2]
[389510695,1759689052646,-500.0,0.0001726,2]
[389510696,1759689052655,-983.67,0.0001726,2]
[389510697,1759689052664,-500.0,0.0001726,2]
[389510698,1759689052674,-500.0,0.0001726,2]
[389510699,1759689052684,-500.0,0.0001726,2]
[389510700,1759689052693,-151.0,0.0001726,2]
[389510701,1759689052702,-533.34,0.0001726,2]
[389510702,1759689052711,-500.0,0.0001726,2]
[389510703,1759689052721,-500.0,0.0001726,2]
[389510704,1759689052730,-709.8,0.0001726,2]
[389510705,1759689052739,-202.003537,0.0001726,2]
[389510706,1759689052748,-500.0,0.0001726,2]
[389510707,1759689052757,-151.0,0.0001726,2]
[389510708,1759689052766,-1377.69,0.0001726,2]
[389510709,1759689052775,-500.0,0.0001726,2]
[389510710,1759689052784,-500.0,0.0001726,2]
[389510711,1759689052793,-151.0,0.0001726,2]
[389510712,1759689052804,-500.0,0.0001726,2]
[389510713,1759689052815,-151.0,0.0001726,2]
[389510714,1759689052824,-500.0,0.0001726,2]
[389510715,1759689052835,-151.0,0.0001726,2]
[389510716,1759689052844,-151.0,0.0001726,2]
[389510717,1759689052854,-151.0,0.0001726,2]
[389510718,1759689052863,-500.0,0.0001726,2]
[389510719,1759689052873,-500.0,0.0001726,2]
[389510720,1759689052884,-500.0,0.0001726,2]
[389510721,1759689052895,-151.0,0.0001726,2]
[389510722,1759689052906,-500.0,0.0001726,2]
[389510723,1759689052916,-500.0,0.0001726,2]
[389510724,1759689052925,-500.0,0.0001726,2]
[389510725,1759689052934,-500.0,0.0001726,2]
[389510726,1759689052943,-500.0,0.0001726,2]
[389510727,1759689052952,-581.49,0.0001726,2]
[389510728,1759689052961,-542.65,0.0001726,2]
[389510729,1759689052971,-500.0,0.0001726,2]
[389510730,1759689052980,-2208.57,0.0001726,2]
[389510731,1759689052990,-500.0,0.0001726,2]
[389510732,1759689052999,-500.0,0.0001726,2]
[389510733,1759689053008,-543.1,0.0001726,2]
[389510734,1759689053017,-500.0,0.0001726,2]
[389510735,1759689053027,-488.54014687,0.0001726,2]
[389510736,1759689053035,-500.0,0.0001726,2]
[389510737,1759689053045,-500.0,0.0001726,2]
[389510738,1759689053054,-832.87,0.0001726,2]
[389510739,1759689053064,-1123.52,0.0001726,2]
[389510740,1759689053073,-585.0,0.0001726,2]
[389510741,1759689053082,-778.06,0.0001726,2]
[389510742,1759689053091,-500.0,0.0001726,2]
[389510743,1759689053100,-500.0,0.0001726,2]
[389510744,1759689053109,-539.79,0.0001726,2]
[389510745,1759689053118,-585.63,0.0001726,2]
[389510746,1759689053128,-500.0,0.0001726,2]
[389510747,1759689053137,-695.12,0.0001726,2]
[389510748,1759689053146,-879.04,0.0001726,2]
[389510749,1759689053155,-500.0,0.0001726,2]
[389510750,1759689053164,-944.64,0.0001726,2]
[389510751,1759689053174,-1951.78,0.0001726,2]
[389510752,1759689053183,-500.0,0.0001726,2]
[389510753,1759689053192,-500.0,0.0001726,2]
[389510754,1759689053201,-1643.6,0.0001726,2]
[389510755,1759689053210,-151.0,0.0001726,2]
[389510756,1759689053219,-500.0,0.0001726,2]
[389510757,1759689053229,-500.0,0.0001726,2]
[389510758,1759689053239,-500.0,0.0001726,2]
[389510759,1759689053248,-151.0,0.0001726,2]
[389510760,1759689053257,-500.0,0.0001726,2]
[389510761,1759689053267,-166.97320362,0.0001726,2]
[389510762,1759689053276,-500.0,0.0001726,2]
[389510763,1759689053285,-500.0,0.0001726,2]
[389510764,1759689053294,-500.0,0.0001726,2]
[389510765,1759689053303,-1072.17,0.0001726,2]
[389510766,1759689053312,-500.0,0.0001726,2]
[389510767,1759689053322,-710.73,0.0001726,2]
[389510768,1759689053331,-539.36,0.0001726,2]
[389510769,1759689053340,-151.0,0.0001726,2]
[389510770,1759689053349,-525.38,0.0001726,2]
[389510771,1759689053359,-151.0,0.0001726,2]
[389510772,1759689053419,-1398.76,0.0001726,2]
[389510773,1759689053428,-1035.99,0.0001726,2]
[389510774,1759689053437,-151.0,0.0001726,2]
[389510775,1759689053446,-500.0,0.0001726,2]
[389510776,1759689053455,-500.0,0.0001726,2]
[389510777,1759689053464,-3042.18,0.0001726,2]
[389510778,1759689053473,-2002.11,0.0001726,2]
[389510779,1759689053482,-491.39422875,0.0001726,2]
[389510780,1759689053492,-500.0,0.0001726,2]
[389510781,1759689053501,-3386.7,0.0001726,2]
[389510782,1759689053510,-500.0,0.0001726,2]
[389510783,1759689053519,-2103.1,0.0001726,2]
[389510784,1759689053528,-4820.21,0.0001726,2]
[389510785,1759689053537,-500.0,0.0001726,2]
[389510786,1759689053546,-6284.43,0.0001726,2]
[389510787,1759689053556,-500.0,0.0001726,2]
[389510788,1759689053565,-729.48,0.0001726,2]
[389510789,1759689053574,-973.67,0.0001726,2]
[389510790,1759689053583,-500.0,0.0001726,2]
[389510791,1759689053592,-500.0,0.0001726,2]
[389510792,1759689053605,-1292.33,0.0001726,2]
[389510793,1759689053616,-500.0,0.0001726,2]
[389510794,1759689053625,-1212.35,0.0001726,2]
[389510795,1759689053634,-151.0,0.0001726,2]
[389510796,1759689053643,-258.37415,0.0001726,2]
[389510797,1759689053652,-500.0,0.0001726,2]
[389510798,1759689053661,-536.91,0.0001726,2]
[389510799,1759689053674,-631.87,0.0001726,2]
[389510800,1759689053683,-500.0,0.0001726,2]
[389510801,1759689053692,-580.24,0.0001726,2]
[389510802,1759689053701,-635.4,0.0001726,2]
[389510803,1759689053711,-500.0,0.0001726,2]
[389510804,1759689053720,-1306.97,0.0001726,2]
[389510805,1759689053729,-3083.19,0.0001726,2]
[389510806,1759689053738,-500.0,0.0001726,2]
[389510807,1759689053746,-1026.88,0.0001726,2]
[389510808,1759689053755,-500.0,0.0001726,2]
[389510809,1759689053764,-2194.45,0.0001726,2]
[389510810,1759689053773,-1267.61,0.0001726,2]
[389510811,1759689053782,-500.0,0.0001726,2]
[389510812,1759689053791,-500.0,0.0001726,2]
[389510813,1759689053800,-2062.38,0.0001726,2]
[389510814,1759689053810,-500.0,0.0001726,2]
[389510815,1759689053819,-500.0,0.0001726,2]
[389510816,1759689053828,-562.16,0.0001726,2]
[389510817,1759689053837,-500.0,0.0001726,2]
[389510818,1759689053847,-4433.26,0.0001726,2]
[389510819,1759689053856,-3569.42,0.0001726,2]
[389510820,1759689053865,-1305.26,0.0001726,2]
[389510821,1759689053875,-4629.9,0.0001726,2]
[389510822,1759689053884,-521.26,0.0001726,2]
[389510823,1759689053893,-550.36,0.0001726,2]
[389510824,1759689053902,-1068.91,0.0001726,2]
[389510825,1759689053912,-500.0,0.0001726,2]
[389510826,1759689053920,-634.62,0.0001726,2]
[389510827,1759689053929,-151.0,0.0001726,2]
[389510828,1759689053939,-500.0,0.0001726,2]
[389510829,1759689053948,-500.0,0.0001726,2]
[389510830,1759689053957,-1079.72,0.0001726,2]
[389510831,1759689053966,-1008.94,0.0001726,2]
[389510832,1759689053975,-740.14,0.0001726,2]
[389510833,1759689053985,-717.46,0.0001726,2]
[389510834,1759689053994,-1365.79,0.0001726,2]
[389510835,1759689054003,-151.0,0.0001726,2]
[389510836,1759689054012,-3616.59,0.0001726,2]
[389510837,1759689054021,-848.78,0.0001726,2]
[389510838,1759689054030,-500.0,0.0001726,2]
[389510839,1759689054039,-3922.43,0.0001726,2]
[389510840,1759689054048,-2838.25,0.0001726,2]
[389510841,1759689054057,-923.11,0.0001726,2]
[389510842,1759689054067,-500.0,0.0001726,2]
[389510843,1759689054075,-500.0,0.0001726,2]
[389510844,1759689054085,-2055.86,0.0001726,2]
[389510845,1759689054094,-500.0,0.0001726,2]
[389510846,1759689054103,-500.0,0.0001726,2]
[389510847,1759689054112,-609.62,0.0001726,2]
[389510848,1759689054121,-1609.34,0.0001726,2]
[389510849,1759689054130,-151.0,0.0001726,2]
[389510850,1759689054139,-1684.32,0.0001726,2]
[389510851,1759689054149,-1707.15,0.0001726,2]
[389510852,1759689054158,-500.0,0.0001726,2]
[389510853,1759689054168,-500.0,0.0001726,2]
[389510854,1759689054178,-983.2,0.0001726,2]
[389510855,1759689054187,-2659.2,0.0001726,2]
[389510856,1759689054197,-621.66,0.0001726,2]
[389510857,1759689054206,-639.69,0.0001726,2]
[389510858,1759689054215,-500.0,0.0001726,2]
[389510859,1759689054224,-4527.15,0.0001726,2]
[389510860,1759689054233,-391.74709679,0.0001726,2]
[389510861,1759689054243,-500.0,0.0001726,2]
[389510862,1759689054252,-762.6,0.0001726,2]
[389510863,1759689054261,-500.0,0.0001726,2]
[389510864,1759689054271,-500.0,0.0001726,2]
[389510865,1759689054281,-675.38,0.0001726,2]
[389510866,1759689054290,-500.0,0.0001726,2]
[389510867,1759689054299,-1616.68,0.0001726,2]
[389510868,1759689054308,-500.0,0.0001726,2]
[389510869,1759689054318,-500.0,0.0001726,2]
[389510870,1759689054329,-2024.41,0.0001726,2]
[389510871,1759689054338,-500.0,0.0001726,2]
[389510872,1759689054349,-523.76,0.0001726,2]
[389510873,1759689054361,-500.0,0.0001726,2]
[389510874,1759689054370,-721.64,0.0001726,2]
[389510875,1759689054379,-500.0,0.0001726,2]
[389510876,1759689054388,-511.05,0.0001726,2]
[389510877,1759689054399,-891.94,0.0001726,2]
[389510878,1759689054408,-1736.69,0.0001726,2]
[389510879,1759689054417,-500.0,0.0001726,2]
[389510880,1759689054427,-500.0,0.0001726,2]
[389510881,1759689054436,-500.0,0.0001726,2]
[389510882,1759689054445,-681.25,0.0001726,2]
[389510883,1759689054454,-772.36,0.0001726,2]
[389510884,1759689054463,-2634.38,0.0001726,2]
[389510885,1759689054471,-6557.05,0.0001726,2]
[389510886,1759689054480,-1112.79,0.0001726,2]
[389510887,1759689054490,-2126.8,0.0001726,2]
[389510888,1759689054499,-500.0,0.0001726,2]
[389510889,1759689054507,-552.88,0.0001726,2]
[389510890,1759689054516,-500.0,0.0001726,2]
[389510891,1759689054525,-2286.45,0.0001726,2]
[389510892,1759689054534,-2130.5,0.0001726,2]
[389510893,1759689054543,-461.40212926,0.0001726,2]
[389510894,1759689054552,-802.42,0.0001726,2]
[389510895,1759689054561,-6687.93,0.0001726,2]
[389510896,1759689054571,-1079.59,0.0001726,2]
[389510897,1759689054580,-500.0,0.0001726,2]
[389510898,1759689054590,-500.0,0.0001726,2]
[389510899,1759689054599,-505.3725146,0.0001726,2]
[389510900,1759689054608,-168.3888056,0.0001733,2]
[389510901,1759689054618,-19292.2273969,0.0001733,2]
[389510902,1759689054627,-151.0,0.00017391,2]
[389510903,1759689054637,-151.0,0.00017391,2]
[389510904,1759689054646,-500.0,0.00017415,2]
[389510905,1759689054655,-500.0,0.00017415,2]
[389510906,1759689054667,-821.70402823,0.00017434,2]
[389510907,1759689054676,-163.29671982,0.00017439,2]
[389510908,1759689054685,-500.0,0.00017439,2]
[389510909,1759689054695,-48805.7105326,0.00017461,2]
[389510910,1759689054703,-500.87752049,0.0001751,2]
[389510911,1759689054713,-500.0,0.0001751,2]
[389510912,1759689054722,-500.0,0.0001751,2]
[389510913,1759689054731,-303.56566882,0.0001751,2]
[389510914,1759689054740,-500.0,0.0001751,2]
[389510915,1759689054749,-500.0,0.0001751,2]
[389510916,1759689054758,-580.67672975,0.0001751,2]
[389510917,1759689054767,-500.0,0.0001751,2]
[389510918,1759689054776,-500.0,0.0001751,2]
[389510919,1759689054786,-500.0,0.0001751,2]
[389510920,1759689054795,-500.0,0.0001751,2]
[389510921,1759689054804,-500.0,0.0001751,2]
[389510922,1759689054813,-500.0,0.0001751,2]
[389510923,1759689054822,-700.0,0.00017521,2]
[389510924,1759689054831,-1000.0,0.00017521,2]
[389510925,1759689054841,-1000.0,0.00017521,2]
[389510926,1759689054850,-1000.0,0.00017521,2]
[389510927,1759689054861,-1000.91811297,0.00017521,2]
[389510928,1759689054871,-342.41886422,0.00017521,2]
[389510929,1759689054879,-1000.0,0.00017521,2]
[389510930,1759689054889,-1000.0,0.00017521,2]
[389510931,1759689054897,-503.2679166,0.00017521,2]
[389510932,1759689054906,-1000.0,0.00017521,2]
[389510933,1759689054915,-1000.0,0.00017521,2]
[389510934,1759689054923,-1000.0,0.00017521,2]
[389510935,1759689054932,-1000.0,0.00017521,2]
[389510936,1759689054941,-1000.0,0.00017521,2]
[389510937,1759689054951,-1000.0,0.00017521,2]
[389510938,1759689054960,-1000.0,0.00017521,2]
[389510939,1759689054969,-1000.0,0.00017521,2]
[389510940,1759689054978,-501.18219762,0.00017521,2]
[389510941,1759689054989,-1000.0,0.00017521,2]
[389510942,1759689054999,-1000.0,0.00017521,2]
[389510943,1759689055008,-500.0,0.00017534,2]
[389510944,1759689055017,-500.0,0.00017534,2]
[389510945,1759689055027,-151.0,0.00017534,2]
[389510946,1759689055036,-500.0,0.00017534,2]
[389510947,1759689055045,-500.0,0.00017534,2]
[389510948,1759689055055,-500.0,0.00017534,2]
[389510949,1759689055063,-500.0,0.00017534,2]
[389510950,1759689055073,-1732.0,0.00017534,2]
[389510951,1759689055082,-466.7293526,0.00017534,2]
[389510952,1759689055092,-500.0,0.00017534,2]
[389510953,1759689055101,-153.57373255,0.00017534,2]
[389510954,1759689055111,-500.0,0.00017534,2]
[389510955,1759689055121,-468.98320977,0.00017534,2]
[389510956,1759689055130,-500.0,0.00017534,2]
[389510957,1759689055140,-1293.03,0.00017534,2]
[389510958,1759689055149,-500.0,0.00017534,2]
[389510959,1759689055158,-500.0,0.00017534,2]
[389510960,1759689055168,-500.0,0.00017534,2]
[389510961,1759689055178,-151.0,0.00017534,2]
[389510962,1759689055187,-151.0,0.00017534,2]
[389510963,1759689055196,-500.0,0.00017534,2]
[389510964,1759689055205,-500.0,0.00017534,2]
[389510965,1759689055214,-158.554178,0.00017534,2]
[389510966,1759689055223,-500.0,0.00017534,2]
[389510967,1759689055233,-500.0,0.00017534,2]
[389510968,1759689055242,-500.0,0.00017534,2]
[389510969,1759689055251,-500.0,0.00017534,2]
[389510970,1759689055261,-500.0,0.00017534,2]
[389510971,1759689055271,-500.0,0.00017534,2]
[389510972,1759689055280,-500.0,0.00017534,2]
[389510973,1759689055289,-246.54558226,0.00017534,2]
[389510974,1759689055299,-555.18,0.00017534,2]
[389510975,1759689055308,-405.12863237,0.00017534,2]
[389510976,1759689055317,-500.0,0.00017534,2]
[389510977,1759689055327,-500.0,0.00017534,2]
[389510978,1759689055336,-500.0,0.00017534,2]
[389510979,1759689055345,-500.0,0.00017534,2]
[389510980,1759689055354,-485.8936809,0.00017534,2]
[389510981,1759689055365,-500.0,0.00017534,2]
[389510982,1759689055374,-500.0,0.00017534,2]
[389510983,1759689055383,-500.0,0.00017534,2]
[389510984,1759689055393,-500.0,0.00017534,2]
[389510985,1759689055402,-595.33,0.00017534,2]
[389510986,1759689055411,-500.0,0.00017534,2]
[389510987,1759689055420,-151.0,0.00017534,2]
[389510988,1759689055429,-500.0,0.00017534,2]
[389510989,1759689055439,-500.0,0.00017534,2]
[389510990,1759689055448,-500.0,0.00017534,2]
[389510991,1759689055457,-1376.15,0.00017534,2]
[389510992,1759689055466,-642.37,0.00017534,2]
[389510993,1759689055475,-956.68,0.00017534,2]
[389510994,1759689055484,-500.0,0.00017534,2]
[389510995,1759689055494,-500.0,0.00017534,2]
[389510996,1759689055503,-151.0,0.00017534,2]
[389510997,1759689055513,-500.0,0.00017534,2]
[389510998,1759689055523,-568.39,0.00017534,2]
[389510999,1759689055532,-500.0,0.00017534,2]
[389511000,1759689055542,-500.0,0.00017534,2]
[389511001,1759689055551,-698.89,0.00017534,2]
[389511002,1759689055560,-500.0,0.00017534,2]
[389511003,1759689055569,-151.0,0.00017534,2]
[389511004,1759689055579,-500.0,0.00017534,2]
[389511005,1759689055588,-500.0,0.00017534,2]
[389511006,1759689055597,-2265.52,0.00017534,2]
[389511007,1759689055606,-643.01,0.00017534,2]
[389511008,1759689055616,-500.0,0.00017534,2]
[389511009,1759689055625,-500.0,0.00017534,2]
[389511010,1759689055634,-500.0,0.00017534,2]
[389511011,1759689055644,-500.0,0.00017534,2]
[389511012,1759689055653,-500.0,0.00017534,2]
[389511013,1759689055663,-1393.99,0.00017534,2]
[389511014,1759689055672,-500.05,0.00017534,2]
[389511015,1759689055683,-1317.15,0.00017534,2]
[389511016,1759689055692,-500.0,0.00017534,2]
[389511017,1759689055701,-763.35,0.00017534,2]
[389511018,1759689055711,-500.0,0.00017534,2]
[389511019,1759689055720,-500.0,0.00017534,2]
[389511020,1759689055729,-151.0,0.00017534,2]
[389511021,1759689055738,-151.0,0.00017534,2]
[389511022,1759689055748,-151.0,0.00017534,2]
[389511023,1759689055757,-546.92,0.00017534,2]
[389511024,1759689055766,-500.0,0.00017534,2]
[389511025,1759689055775,-675.29,0.00017534,2]
[389511026,1759689055785,-500.0,0.00017534,2]
[389511027,1759689055794,-151.0,0.00017534,2]
[389511028,1759689055803,-852.17,0.00017534,2]
[389511029,1759689055812,-500.0,0.00017534,2]
[389511030,1759689055822,-2432.63,0.00017534,2]
[389511031,1759689055831,-500.0,0.00017534,2]
[389511032,1759689055841,-809.72,0.00017534,2]
[389511033,1759689055851,-1268.73,0.00017534,2]
[389511034,1759689055861,-826.51,0.00017534,2]
[389511035,1759689055871,-151.0,0.00017534,2]
[389511036,1759689055881,-824.29,0.00017534,2]
[389511037,1759689055890,-974.64,0.00017534,2]
[389511038,1759689055900,-500.0,0.00017534,2]
[389511039,1759689055909,-983.67,0.00017534,2]
[389511040,1759689055919,-500.0,0.00017534,2]
[389511041,1759689055929,-500.0,0.00017534,2]
[389511042,1759689055938,-533.34,0.00017534,2]
[389511043,1759689055948,-500.0,0.00017534,2]
[389511044,1759689055957,-221.80830335,0.00017534,2]
[389511045,1759689055967,-709.8,0.00017534,2]
[389511046,1759689055976,-500.0,0.00017534,2]
[389511047,1759689055986,-151.0,0.00017534,2]
[389511048,1759689055996,-1377.69,0.00017534,2]
[389511049,1759689056005,-500.0,0.00017534,2]
[389511050,1759689056015,-500.0,0.00017534,2]
[389511051,1759689056025,-151.0,0.00017534,2]
[389511052,1759689056035,-500.0,0.00017534,2]
[389511053,1759689056044,-500.0,0.00017534,2]
[389511054,1759689056054,-151.0,0.00017534,2]
[389511055,1759689056063,-151.0,0.00017534,2]
[389511056,1759689056073,-197.88600318,0.00017534,2]
[389511057,1759689056083,-500.0,0.00017534,2]
[389511058,1759689056092,-500.0,0.00017534,2]
[389511059,1759689056102,-500.0,0.00017534,2]
[389511060,1759689056112,-151.0,0.00017534,2]
[389511061,1759689056121,-500.0,0.00017534,2]
[389511062,1759689056131,-500.0,0.00017534,2]
[389511063,1759689056141,-500.0,0.00017534,2]
[389511064,1759689056152,-500.0,0.00017534,2]
[389511065,1759689056161,-581.49,0.00017534,2]
[389511066,1759689056171,-542.65,0.00017534,2]
[389511067,1759689056180,-151.0,0.00017534,2]
[389511068,1759689056190,-500.0,0.00017534,2]
[389511069,1759689056200,-151.0,0.00017534,2]
[389511070,1759689056210,-2208.57,0.00017534,2]
[389511071,1759689056220,-500.0,0.00017534,2]
[389511072,1759689056230,-500.0,0.00017534,2]
[389511073,1759689056240,-543.1,0.00017534,2]
[389511074,1759689056249,-500.0,0.00017534,2]
[389511075,1759689056259,-151.0,0.00017534,2]
[389511076,1759689056268,-500.0,0.00017534,2]
[389511077,1759689056278,-500.0,0.00017534,2]
[389511078,1759689056287,-832.87,0.00017534,2]
[389511079,1759689056297,-1123.52,0.00017534,2]
[389511080,1759689056306,-585.0,0.00017534,2]
[389511081,1759689056316,-778.06,0.00017534,2]
[389511082,1759689056325,-151.0,0.00017534,2]
[389511083,1759689056335,-500.0,0.00017534,2]
[389511084,1759689056344,-500.0,0.00017534,2]
[389511085,1759689056359,-539.79,0.00017534,2]
[389511086,1759689056369,-151.0,0.00017534,2]
[389511087,1759689056378,-585.63,0.00017534,2]
[389511088,1759689056388,-151.0,0.00017534,2]
[389511089,1759689056399,-480.0,0.00017534,2]
[389511090,1759689056408,-695.12,0.00017534,2]
[389511091,1759689056418,-879.04,0.00017534,2]
[389511092,1759689056429,-515.64495378,0.00017534,2]
[389511093,1759689056438,-151.0,0.00017534,2]
[389511094,1759689056448,-944.64,0.00017534,2]
[389511095,1759689056457,-1951.78,0.00017534,2]
[389511096,1759689056467,-500.0,0.00017534,2]
[389511097,1759689056476,-500.0,0.00017534,2]
[389511098,1759689056485,-1643.6,0.00017534,2]
[389511099,1759689056495,-210.688056,0.00017534,2]
[389511100,1759689056504,-500.0,0.00017534,2]
[389511101,1759689056514,-500.0,0.00017534,2]
[389511102,1759689056523,-500.0,0.00017534,2]
[389511103,1759689056534,-151.0,0.00017534,2]
[389511104,1759689056543,-500.0,0.00017534,2]
[389511105,1759689056552,-500.0,0.00017534,2]
[389511106,1759689056562,-500.0,0.00017534,2]
[389511107,1759689056571,-1072.17,0.00017534,2]
[389511108,1759689056581,-500.0,0.00017534,2]
[389511109,1759689056591,-710.73,0.00017534,2]
[389511110,1759689056600,-539.36,0.00017534,2]
[389511111,1759689056610,-151.0,0.00017534,2]
[389511112,1759689056620,-525.38,0.00017534,2]
[389511113,1759689056630,-151.0,0.00017534,2]
[389511114,1759689056639,-1398.76,0.00017534,2]
[389511115,1759689056649,-1035.99,0.00017534,2]
[389511116,1759689056658,-151.0,0.00017534,2]
[389511117,1759689056668,-500.0,0.00017534,2]
[389511118,1759689056677,-500.0,0.00017534,2]
[389511119,1759689056687,-3042.18,0.00017534,2]
[389511120,1759689056697,-2002.11,0.00017534,2]
[389511121,1759689056706,-500.0,0.00017534,2]
[389511122,1759689056715,-3386.7,0.00017534,2]
[389511123,1759689056725,-500.0,0.00017534,2]
[389511124,1759689056735,-2103.1,0.00017534,2]
[389511125,1759689056744,-4820.21,0.00017534,2]
[389511126,1759689056754,-500.0,0.00017534,2]
[389511127,1759689056764,-6284.43,0.00017534,2]
[389511128,1759689056774,-729.48,0.00017534,2]
[389511129,1759689056783,-973.67,0.00017534,2]
[389511130,1759689056793,-500.0,0.00017534,2]
[389511131,1759689056803,-1292.33,0.00017534,2]
[389511132,1759689056812,-434.27801408,0.00017534,2]
[389511133,1759689056822,-1212.35,0.00017534,2]
[389511134,1759689056831,-151.0,0.00017534,2]
[389511135,1759689056841,-500.0,0.00017534,2]
[389511136,1759689056999,-536.91,0.00017534,2]
[389511137,1759689057008,-631.87,0.00017534,2]
[389511138,1759689057017,-500.0,0.00017534,2]
[389511139,1759689057027,-580.24,0.00017534,2]
[389511140,1759689057036,-635.4,0.00017534,2]
[389511141,1759689057045,-500.0,0.00017534,2]
[389511142,1759689057055,-1306.97,0.00017534,2]
[389511143,1759689057064,-3083.19,0.00017534,2]
[389511144,1759689057073,-500.0,0.00017534,2]
[389511145,1759689057082,-1026.88,0.00017534,2]
[389511146,1759689057092,-500.0,0.00017534,2]